bitfinex-derivatives/quotes_BTCF0:USTF0_20240925
["timestamp","ask_amount","ask_price","bid_price","bid_amount"]
[1727271226975,0.16149284,63592.0,63591.0,0.078631]
[1727271227669,0.16149284,63592.0,63591.0,0.24428235]
[1727271228059,0.078631,63592.0,63591.0,0.24628235]
[1727271228263,0.20289211,63592.0,63591.0,0.24628235]
[1727271228660,0.28581217,63592.0,63591.0,0.24628235]
[1727271229169,0.16155106,63592.0,63591.0,0.24628235]
[1727271229572,0.16162009,63592.0,63591.0,0.16765135]
[1727271229966,0.2122842,63592.0,63591.0,0.16765135]
[1727271230773,0.2122842,63592.0,63589.0,0.078632]
[1727271230774,0.28366033,63592.0,63576.0,0.5108]
[1727271231067,0.078641,63584.0,63579.0,0.17253791]
[1727271231260,0.078641,63584.0,63583.0,0.078641]
[1727271231673,0.078641,63584.0,63583.0,0.25117891]
[1727271232875,0.078641,63584.0,63583.0,0.26217891]
[1727271233468,0.06241664,63588.0,63587.0,0.078636]
[1727271233666,0.06241664,63592.0,63584.0,0.15]
[1727271233871,0.06241664,63592.0,63591.0,0.078631]
[1727271234165,0.033,63594.0,63586.0,0.078637]
[1727271234166,0.033,63594.0,63593.0,0.078628]
[1727271234488,0.095456,63594.0,63593.0,0.078628]
[1727271234769,0.37224734,63595.0,63594.0,0.078627]
[1727271235459,0.37224734,63595.0,63594.0,0.228627]
[1727271235460,0.3608,63595.0,63594.0,0.228627]
[1727271235662,0.3608,63595.0,63594.0,0.078627]
[1727271235876,0.3618,63595.0,63594.0,0.078627]
[1727271236172,0.062456,63599.0,63594.0,1.21909245]
[1727271236475,0.01188846,63601.0,63600.0,0.07862]
[1727271236681,0.0780208,63606.0,63602.0,0.078617]
[1727271236682,0.062456,63603.0,63602.0,0.078617]
[1727271236879,0.06248965,63606.0,63605.0,0.078614]
[1727271237174,0.0301,63609.0,63605.0,1.03670748]
[1727271237175,0.06249325,63609.0,63605.0,1.03670748]
[1727271237378,0.10922913,63627.0,63605.0,1.03670748]
[1727271237379,0.0780208,63616.0,63614.0,0.078602]
[1727271237575,0.0780208,63622.0,63614.0,0.3608]
[1727271237773,0.3909,63624.0,63623.0,0.078591]
[1727271238071,0.3909,63624.0,63623.0,0.25019957]
[1727271238280,0.4689208,63624.0,63623.0,0.25019957]
[1727271239077,0.3909,63624.0,63623.0,0.25019957]
[1727271239463,0.3929,63624.0,63623.0,0.25119957]
[1727271240064,0.3919,63624.0,63623.0,0.25219957]
[1727271240264,0.4699208,63624.0,63623.0,0.25219957]
[1727271240480,0.0790208,63624.0,63623.0,0.39219957]
[1727271240869,0.0790208,63624.0,63623.0,0.39119957]
[1727271241064,0.0770208,63625.0,63624.0,0.07859]
[1727271241266,0.3645,63637.0,63636.0,0.078575]
[1727271241467,0.3608,63637.0,63636.0,0.078575]
[1727271241977,0.3608,63637.0,63636.0,0.25745395]
[1727271242166,0.3608,63645.0,63643.0,0.078566]
[1727271242368,0.3608,63645.0,63636.0,0.17887895]
[1727271242369,0.3608,63645.0,63644.0,0.218565]
[1727271242673,0.3608,63645.0,63644.0,0.39066154]
[1727271242980,0.39706,63655.0,63644.0,0.14]
[1727271243164,0.43935,63657.0,63650.0,0.14]
[1727271243369,0.3608,63657.0,63654.0,0.14]
[1727271243571,0.3608,63657.0,63654.0,0.218553]
[1727271243775,0.3608,63657.0,63656.0,0.078551]
[1727271243986,0.0308,63664.0,63655.0,0.53426158]
[1727271244174,0.0308,63664.0,63663.0,0.14]
[1727271244984,0.109341,63664.0,63663.0,0.14]
[1727271245467,0.078545,63661.0,63659.0,0.14]
[1727271246180,0.078546,63660.0,63659.0,0.14]
[1727271246479,0.078551,63656.0,63654.0,0.001]
[1727271246682,0.65243014,63655.0,63654.0,0.001]
[1727271246876,0.73098926,63655.0,63654.0,0.001]
[1727271247286,0.078555,63653.0,63648.0,0.22]
[1727271247490,0.12413544,63649.0,63648.0,0.29856]
[1727271247777,0.08460637,63649.0,63648.0,0.22]
[1727271247982,0.08460637,63649.0,63648.0,0.39363553]
[1727271248282,0.12412614,63654.0,63648.0,1.46495553]
[1727271248484,0.15527007,63661.0,63653.0,0.659354]
[1727271248778,0.14341623,63665.0,63659.0,0.3608]
[1727271248983,0.13971623,63669.0,63664.0,0.22]
[1727271249290,0.078538,63666.0,63665.0,0.16486996]
[1727271249581,0.078538,63666.0,63663.0,0.078542]
[1727271249779,0.078538,63666.0,63664.0,0.078541]
[1727271250080,0.078538,63666.0,63665.0,0.2573574]
[1727271250267,0.439338,63666.0,63665.0,0.2573574]
[1727271251068,0.439338,63666.0,63665.0,0.1788174]
[1727271251479,0.07854,63665.0,63664.0,0.001]
[1727271251987,0.07854,63665.0,63664.0,0.079541]
[1727271252183,0.3608,63666.0,63665.0,0.07854]
[1727271252578,0.3608,63666.0,63665.0,0.24727332]
[1727271252775,0.3618,63666.0,63665.0,0.24727332]
[1727271253983,0.3618,63666.0,63665.0,0.24827332]
[1727271254285,0.3618,63666.0,63665.0,0.24927332]
[1727271254286,0.440338,63666.0,63665.0,0.24927332]
[1727271254494,0.659338,63666.0,63649.0,0.00084]
[1727271254788,0.3608,63656.0,63655.0,0.16918258]
[1727271255083,0.3608,63656.0,63650.0,0.16691857]
[1727271255285,0.078554,63654.0,63653.0,0.078554]
[1727271255591,0.3608,63656.0,63649.0,0.078559]
[1727271255592,0.078557,63651.0,63649.0,0.078559]
[1727271255881,0.109252,63655.0,63651.0,0.17838431]
[1727271256073,0.078552,63655.0,63654.0,0.078553]
[1727271256271,0.3608,63656.0,63650.0,0.078558]
[1727271256272,0.078556,63652.0,63650.0,0.078558]
[1727271256476,0.078556,63652.0,63651.0,0.078557]
[1727271256682,0.3608,63656.0,63654.0,0.078553]
[1727271257282,0.078557,63651.0,63650.0,0.078558]
[1727271257480,0.3608,63656.0,63646.0,0.36315678]
[1727271257481,0.078561,63648.0,63646.0,0.36315678]
[1727271257686,0.3608,63650.0,63649.0,0.078559]
[1727271258184,0.439358,63650.0,63649.0,0.078559]
[1727271258976,0.439358,63650.0,63649.0,0.25357411]
[1727271259585,0.3608,63650.0,63649.0,0.25357411]
[1727271259887,0.3608,63650.0,63649.0,0.26357411]
[1727271260088,0.3608,63650.0,63649.0,0.088559]
[1727271260089,0.439358,63650.0,63649.0,0.088559]
[1727271260882,0.439358,63650.0,63641.0,0.078568]
[1727271261083,0.439366,63644.0,63633.0,0.078578]
[1727271261278,0.11167329,63643.0,63642.0,0.078568]
[1727271261483,0.15015042,63643.0,63642.0,0.078568]
[1727271261790,0.078578,63634.0,63633.0,0.06369995]
[1727271261987,0.078578,63634.0,63623.0,0.08094742]
[1727271261988,0.07859,63624.0,63623.0,0.08094742]
[1727271262182,0.11169429,63624.0,63623.0,0.08094742]
[1727271262383,0.15018028,63624.0,63623.0,0.17567072]
[1727271262693,0.078594,63621.0,63611.0,0.0037]
[1727271262994,0.3608,63620.0,63615.0,0.16402023]
[1727271263185,0.1240761,63617.0,63616.0,0.0786]
[1727271263380,0.3608,63620.0,63618.0,0.078598]
[1727271263688,0.3608,63620.0,63606.0,0.3608]
[1727271263689,0.07010625,63619.0,63617.0,0.16402023]
[1727271263985,0.33835237,63619.0,63611.0,0.090606]
[1727271264184,0.12418091,63613.0,63611.0,0.090606]
[1727271264388,0.19431098,63612.0,63611.0,0.090606]
[1727271264587,0.11837969,63612.0,63611.0,0.090606]
[1727271264790,0.08673934,63612.0,63611.0,0.090606]
[1727271264992,0.22645557,63612.0,63611.0,0.090606]
[1727271265290,0.08673934,63612.0,63611.0,0.090606]
[1727271265497,0.13984863,63612.0,63611.0,0.090606]
[1727271265798,0.08673934,63612.0,63611.0,0.078606]
[1727271266394,0.12785462,63612.0,63611.0,0.007]
[1727271266591,0.16634434,63612.0,63611.0,0.007]
[1727271267384,0.16634434,63612.0,63611.0,0.009]
[1727271268405,0.079605,63612.0,63611.0,0.009]
[1727271269886,0.079605,63612.0,63602.0,0.00235795]
[1727271269887,0.078611,63608.0,63602.0,0.00235795]
[1727271270086,1.2226,63612.0,63602.0,0.00235795]
[1727271270087,0.40008394,63603.0,63602.0,0.00235795]
[1727271271097,0.40008394,63603.0,63602.0,0.01335795]
[1727271271503,0.40008394,63603.0,63602.0,0.011]
[1727271271801,0.078627,63594.0,63593.0,0.0037]
[1727271271991,0.078627,63594.0,63589.0,0.078633]
[1727271271992,0.5108,63594.0,63589.0,0.078633]
[1727271272193,0.078632,63590.0,63589.0,0.078633]
[1727271272594,0.078632,63590.0,63589.0,0.24439321]
[1727271272789,0.070632,63590.0,63589.0,0.078633]
[1727271273592,0.070632,63590.0,63589.0,0.080633]
[1727271273795,0.220632,63590.0,63589.0,0.002]
[1727271274891,0.222632,63590.0,63589.0,0.002]
[1727271276197,0.222632,63590.0,63589.0,0.080633]
[1727271276399,0.72280001,63594.0,63593.0,0.078628]
[1727271276598,0.800227,63594.0,63593.0,0.078628]
[1727271277007,0.078627,63594.0,63593.0,0.078628]
[1727271277496,0.085627,63594.0,63593.0,0.078628]
[1727271277907,0.007,63594.0,63593.0,0.078628]
[1727271278113,0.007,63594.0,63593.0,0.228628]
[1727271278404,0.3608,63597.0,63596.0,0.078625]
[1727271278800,0.3608,63597.0,63596.0,0.24623781]
[1727271279198,0.0037,63606.0,63596.0,0.24623781]
[1727271279199,0.07862,63601.0,63596.0,0.16761281]
[1727271279403,0.43942,63601.0,63600.0,0.078619]
[1727271280103,0.3608,63601.0,63596.0,0.078624]
[1727271280301,0.009,63597.0,63596.0,0.078624]
[1727271280803,0.009,63597.0,63596.0,0.25986957]
[1727271281104,0.3778,63601.0,63600.0,0.07862]
[1727271281307,0.017,63601.0,63600.0,0.07862]
[1727271281495,0.017,63601.0,63600.0,0.46214216]
[1727271281702,0.004,63601.0,63600.0,0.46214216]
[1727271282003,0.004,63601.0,63600.0,0.38352216]
[1727271282303,0.004,63601.0,63600.0,0.24352216]
[1727271282705,0.439412,63607.0,63606.0,0.078612]
[1727271283298,0.3608,63607.0,63606.0,0.078612]
[1727271283498,0.3608,63607.0,63606.0,0.25963042]
[1727271284404,0.3628,63607.0,63606.0,0.25963042]
[1727271284808,0.002,63607.0,63606.0,0.25963042]
[1727271285102,0.002,63607.0,63606.0,0.33824242]
[1727271286611,0.002,63607.0,63606.0,0.25963042]
[1727271289108,0.591411,63607.0,63606.0,0.25963042]
[1727271289410,0.078615,63604.0,63603.0,0.1254341]
[1727271289809,0.078615,63604.0,63603.0,0.29898314]
[1727271290215,0.078615,63604.0,63603.0,0.0468191]
[1727271290615,0.079615,63604.0,63603.0,0.0478191]
[1727271291008,0.001,63604.0,63603.0,0.1264351]
[1727271291409,0.001,63604.0,63603.0,0.1254351]
[1727271291606,0.001,63604.0,63603.0,0.30612934]
[1727271292017,0.001,63604.0,63603.0,0.25931024]
[1727271292718,0.001,63604.0,63603.0,0.33792624]
[1727271295303,0.001,63604.0,63603.0,0.25931024]
[1727271296413,0.079615,63604.0,63603.0,0.078616]
[1727271296719,0.07862,63600.0,63599.0,0.078621]
[1727271296912,0.07862,63600.0,63596.0,0.078624]
[1727271296913,0.078625,63597.0,63596.0,0.078624]
[1727271297621,0.078625,63597.0,63595.0,0.04698966]
[1727271297622,0.0317,63599.0,63598.0,0.078622]
[1727271299608,0.0317,63599.0,63598.0,0.19082686]
[1727271300209,0.0327,63599.0,63598.0,0.19082686]
[1727271300414,0.261321,63599.0,63598.0,0.19082686]
[1727271300615,0.111321,63599.0,63598.0,0.19082686]
[1727271300815,0.0327,63599.0,63598.0,0.28480618]
[1727271301010,0.001,63599.0,63598.0,0.60269758]
[1727271301312,0.3608,63605.0,63598.0,0.60269758]
[1727271301313,0.3608,63605.0,63604.0,0.15723]
[1727271301611,0.0332,63617.0,63604.0,0.15723]
[1727271301612,0.439404,63613.0,63612.0,0.078605]
[1727271303615,0.449404,63613.0,63612.0,0.079605]
[1727271303810,0.449404,63613.0,63612.0,0.001]
[1727271303811,1.199404,63613.0,63612.0,0.001]
[1727271304012,1.671004,63613.0,63606.0,0.07833682]
[1727271304211,1.671004,63613.0,63604.0,0.07833682]
[1727271304212,0.078612,63606.0,63604.0,0.07833682]
[1727271304420,0.3608,63607.0,63600.0,0.17456721]
[1727271304421,0.078615,63604.0,63600.0,0.17456721]
[1727271304621,0.589419,63601.0,63593.0,0.09400419]
[1727271304822,0.5108,63594.0,63590.0,0.078632]
[1727271305720,0.078632,63590.0,63589.0,0.10088]
[1727271306021,0.078653,63573.0,63572.0,0.0008]
[1727271306227,0.800253,63573.0,63572.0,0.10775448]
[1727271306526,0.078659,63568.0,63567.0,0.00092]
[1727271306735,0.298666,63563.0,63557.0,0.078672]
[1727271306939,2.2216,63573.0,63556.0,0.031]
[1727271306940,0.298672,63558.0,63556.0,0.031]
[1727271307225,0.3608,63562.0,63556.0,0.031]
[1727271307418,0.3608,63562.0,63557.0,0.078673]
[1727271308026,0.3608,63562.0,63556.0,0.031]
[1727271308214,0.3608,63562.0,63559.0,0.07867]
[1727271308916,0.3618,63562.0,63559.0,0.07867]
[1727271309624,0.078668,63561.0,63559.0,0.001]
[1727271309816,0.078672,63558.0,63557.0,0.008]
[1727271310018,0.5808,63558.0,63546.0,0.078686]
[1727271310226,0.3608,63551.0,63546.0,0.078686]
[1727271310413,0.3608,63551.0,63548.0,0.1823393]
[1727271311017,0.3608,63551.0,63548.0,0.2610233]
[1727271311427,0.58352001,63558.0,63555.0,0.078675]
[1727271311428,0.36352001,63558.0,63555.0,0.078675]
[1727271311624,0.3618,63558.0,63555.0,0.078675]
[1727271311825,0.3618,63558.0,63556.0,0.078674]
[1727271312021,0.3628,63558.0,63556.0,0.078674]
[1727271312424,0.3618,63558.0,63557.0,0.078673]
[1727271312630,0.3618,63558.0,63557.0,0.25155605]
[1727271312814,0.3608,63558.0,63557.0,0.078673]
[1727271313018,0.3608,63558.0,63557.0,0.25155605]
[1727271313332,0.3618,63558.0,63557.0,0.25155605]
[1727271313843,0.3628,63558.0,63557.0,0.25155605]
[1727271314048,0.002,63558.0,63557.0,0.25155605]
[1727271314539,0.078651,63575.0,63557.0,1.24488305]
[1727271314540,0.3608,63575.0,63557.0,1.24488305]
[1727271314739,0.3608,63575.0,63574.0,0.078652]
[1727271315147,0.3214464,63575.0,63574.0,0.078652]
[1727271315347,0.4000974,63575.0,63574.0,0.078652]
[1727271315542,0.4000974,63575.0,63565.0,0.3608]
[1727271315543,0.078657,63570.0,63565.0,0.3608]
[1727271315737,0.078659,63569.0,63565.0,0.439462]
[1727271315940,0.078653,63574.0,63566.0,0.17418756]
[1727271316136,0.078659,63569.0,63566.0,0.17418756]
[1727271316446,0.078653,63574.0,63566.0,0.17418756]
[1727271316835,0.078653,63573.0,63569.0,0.078658]
[1727271317550,0.078657,63571.0,63569.0,0.078658]
[1727271317740,0.078657,63570.0,63569.0,0.078658]
[1727271317937,0.078657,63571.0,63569.0,0.078658]
[1727271318134,0.078657,63570.0,63569.0,0.078658]
[1727271318336,0.54316641,63575.0,63566.0,0.004]
[1727271318535,0.5414464,63575.0,63566.0,0.084661]
[1727271318949,0.078657,63571.0,63570.0,0.078657]
[1727271319251,0.079657,63571.0,63570.0,0.078657]
[1727271319638,0.078659,63569.0,63566.0,0.078662]
[1727271319838,0.003,63571.0,63569.0,0.078657]
[1727271320052,0.003,63571.0,63570.0,0.078657]
[1727271320255,0.003,63571.0,63570.0,0.24511577]
[1727271320461,0.3214464,63575.0,63574.0,0.078652]
[1727271321751,0.4000974,63575.0,63574.0,0.078652]
[1727271321943,0.3214464,63575.0,63574.0,0.078652]
[1727271322143,0.3214464,63575.0,63570.0,0.001]
[1727271322144,0.078655,63572.0,63570.0,0.001]
[1727271322443,0.078655,63572.0,63571.0,0.17253504]
[1727271323238,0.3214464,63575.0,63574.0,0.078652]
[1727271323953,0.4000974,63575.0,63574.0,0.078652]
[1727271324149,0.078654,63572.0,63571.0,0.001]
[1727271324351,0.078654,63572.0,63571.0,0.079655]
[1727271324553,0.078654,63572.0,63571.0,0.078655]
[1727271325453,0.078654,63572.0,63571.0,0.079655]
[1727271325454,0.079654,63572.0,63571.0,0.079655]
[1727271326254,0.001,63572.0,63571.0,0.079655]
[1727271327061,0.158308,63572.0,63571.0,0.002]
[1727271327254,0.158308,63572.0,63557.0,0.00236006]
[1727271327255,0.078669,63560.0,63557.0,0.00236006]
[1727271327447,0.659469,63560.0,63557.0,0.00236006]
[1727271327940,0.078672,63558.0,63557.0,0.00236006]
[1727271328552,0.078672,63558.0,63557.0,0.08103306]
[1727271328749,0.228672,63558.0,63557.0,0.08103306]
[1727271329153,0.229672,63558.0,63557.0,0.08203306]
[1727271329658,0.224672,63558.0,63557.0,0.08203306]
[1727271329955,0.224672,63558.0,63557.0,0.00336006]
[1727271330452,0.074672,63558.0,63557.0,0.00336006]
[1727271330660,0.075672,63558.0,63557.0,0.00836006]
[1727271331356,0.075672,63558.0,63557.0,0.08703306]
[1727271333658,0.002,63558.0,63557.0,0.26561159]
[1727271335046,0.080672,63558.0,63557.0,0.18457853]
[1727271335249,0.080672,63558.0,63557.0,0.006]
[1727271335962,0.002,63558.0,63557.0,0.006]
[1727271336149,0.06351806,63558.0,63557.0,0.083673]
[1727271336355,0.078669,63560.0,63557.0,0.001]
[1727271336561,0.078669,63560.0,63559.0,0.078671]
[1727271336761,0.22,63566.0,63557.0,0.3618]
[1727271336966,0.22,63566.0,63563.0,0.04707779]
[1727271337147,0.23183559,63566.0,63563.0,0.04707779]
[1727271337352,0.078663,63565.0,63564.0,0.04707779]
[1727271337656,0.23183559,63566.0,63557.0,0.3618]
[1727271337657,0.078664,63564.0,63563.0,0.078665]
[1727271337965,0.078664,63564.0,63558.0,0.07841041]
[1727271337966,0.09049759,63566.0,63565.0,0.078663]
[1727271338152,0.078662,63566.0,63565.0,0.078663]
[1727271338861,0.078667,63562.0,63561.0,0.078667]
[1727271339759,0.22,63570.0,63561.0,0.0327]
[1727271339959,0.0037,63576.0,63569.0,0.5808]
[1727271340257,0.08234,63584.0,63575.0,0.3608]
[1727271340459,0.07864,63584.0,63581.0,0.04706714]
[1727271340852,0.07864,63584.0,63582.0,0.04706714]
[1727271341849,0.07864,63584.0,63583.0,0.04706714]
[1727271342064,0.07964,63584.0,63583.0,0.04706714]
[1727271342863,0.08064,63584.0,63583.0,0.04706714]
[1727271343056,0.08864,63584.0,63583.0,0.04706714]
[1727271343367,0.08764,63584.0,63583.0,0.12570814]
[1727271343959,0.08064,63584.0,63583.0,0.12570814]
[1727271344356,0.002,63584.0,63581.0,0.04706714]
[1727271344754,0.078647,63579.0,63576.0,0.0327]
[1727271345565,0.078647,63579.0,63578.0,0.078647]
[1727271345761,0.11595803,63579.0,63578.0,0.078647]
[1727271345961,0.001,63584.0,63583.0,0.078641]
[1727271346162,0.49138615,63589.0,63585.0,0.078638]
[1727271346163,0.09690954,63586.0,63585.0,0.078638]
[1727271346370,0.078625,63596.0,63586.0,0.0309]
[1727271346371,0.09378195,63588.0,63586.0,0.0309]
[1727271346561,0.09378195,63589.0,63588.0,0.078635]
[1727271346758,0.09378195,63590.0,63589.0,0.078633]
[1727271347065,0.07864,63584.0,63583.0,0.0008]
[1727271347255,0.07864,63584.0,63576.0,0.03875933]
[1727271347256,0.5868,63584.0,63576.0,0.00235933]
[1727271347456,0.09375294,63578.0,63576.0,0.00235933]
[1727271347663,0.5868,63584.0,63576.0,0.08100833]
[1727271347664,0.3608,63577.0,63576.0,0.08100833]
[1727271348172,0.3608,63577.0,63576.0,0.25161978]
[1727271348557,0.439448,63577.0,63576.0,0.17297078]
[1727271348758,0.439448,63577.0,63576.0,0.00235933]
[1727271349364,0.12496614,63586.0,63576.0,0.47331101]
[1727271349567,0.14591139,63590.0,63576.0,0.47331101]
[1727271349568,0.006,63590.0,63589.0,0.078633]
[1727271350157,0.3608,63595.0,63592.0,0.07863]
[1727271350359,0.3608,63595.0,63583.0,0.0635]
[1727271350563,0.07810272,63585.0,63584.0,0.17883386]
[1727271350870,0.09372327,63588.0,63583.0,0.0635]
[1727271351075,0.09372327,63588.0,63583.0,0.220782]
[1727271351076,0.07810202,63584.0,63583.0,0.220782]
[1727271351258,0.07810202,63586.0,63584.0,0.55044]
[1727271351464,0.06246618,63587.0,63586.0,0.078637]
[1727271351664,0.09742327,63598.0,63597.0,0.078623]
[1727271351862,0.3608,63602.0,63601.0,0.078619]
[1727271352265,0.078621,63599.0,63585.0,0.40786714]
[1727271352464,0.22,63599.0,63585.0,0.3608]
[1727271352770,0.3608,63602.0,63585.0,0.3608]
[1727271352771,0.3608,63602.0,63590.0,0.16738227]
[1727271352970,0.3608,63602.0,63589.0,0.22]
[1727271353170,0.3608,63602.0,63601.0,0.078619]
[1727271353171,0.3748,63602.0,63601.0,0.078619]
[1727271353562,0.3748,63602.0,63601.0,0.25660552]
[1727271353866,0.014,63602.0,63601.0,0.25660552]
[1727271354470,0.028,63602.0,63601.0,0.25660552]
[1727271355371,0.014,63602.0,63601.0,0.25660552]
[1727271355668,0.014,63602.0,63601.0,0.078619]
[1727271356063,0.014,63602.0,63597.0,0.078623]
[1727271356264,0.22,63598.0,63597.0,0.078623]
[1727271356670,0.22,63598.0,63597.0,0.25647704]
[1727271356876,0.22,63598.0,63597.0,0.25687704]
[1727271357185,0.078622,63599.0,63597.0,0.25687704]
[1727271357473,0.078622,63599.0,63598.0,0.0004]
[1727271358469,0.078622,63599.0,63598.0,0.079022]
[1727271358872,0.60676,63602.0,63599.0,0.07862]
[1727271359067,0.3708,63602.0,63601.0,0.0004]
[1727271359374,0.078613,63606.0,63602.0,0.078617]
[1727271359572,0.0311,63607.0,63606.0,0.078612]
[1727271359772,0.078612,63606.0,63605.0,0.0004]
[1727271360077,0.157624,63606.0,63605.0,0.0004]
[1727271360383,0.078625,63597.0,63595.0,0.078625]
[1727271360563,1.07204,63606.0,63583.0,0.3923]
[1727271360564,0.3608,63600.0,63599.0,0.078621]
[1727271360872,0.3608,63600.0,63599.0,0.079021]
[1727271361068,0.0144,63606.0,63599.0,0.0004]
[1727271361379,0.0144,63606.0,63605.0,0.0004]
[1727271362277,0.093012,63606.0,63605.0,0.0004]
[1727271363669,0.0284,63606.0,63605.0,0.079014]
[1727271365185,0.0284,63606.0,63605.0,0.25764739]
[1727271366173,0.0284,63606.0,63605.0,0.33626139]
[1727271366480,0.0284,63606.0,63605.0,0.55626139]
[1727271367176,0.0284,63606.0,63605.0,0.47764739]
[1727271367572,0.0284,63606.0,63605.0,0.55626139]
[1727271368580,0.0284,63606.0,63605.0,0.63487539]
[1727271368775,0.09372327,63613.0,63612.0,0.078605]
[1727271369075,0.09362276,63614.0,63613.0,0.078604]
[1727271369269,0.10902096,63621.0,63613.0,0.078604]
[1727271369270,0.09362276,63618.0,63613.0,0.16631113]
[1727271369470,0.09362276,63619.0,63618.0,0.078598]
[1727271369678,0.09362276,63620.0,63619.0,0.078596]
[1727271369875,0.09362276,63620.0,63619.0,0.24335129]
[1727271370183,0.09362276,63620.0,63619.0,0.078596]
[1727271370383,0.25080584,63620.0,63619.0,0.16557731]
[1727271370580,0.15719,63620.0,63619.0,0.16557731]
[1727271370875,0.086596,63619.0,63618.0,0.0004]
[1727271371079,0.1237049,63619.0,63618.0,0.0004]
[1727271371285,0.1161049,63619.0,63618.0,0.078998]
[1727271371781,0.078996,63619.0,63618.0,0.078998]
[1727271371981,0.078996,63619.0,63618.0,0.0004]
[1727271372877,0.078996,63619.0,63618.0,0.078998]
[1727271373077,0.079996,63619.0,63618.0,0.078998]
[1727271373273,0.11704485,63619.0,63618.0,0.078998]
[1727271373581,0.41563617,63619.0,63618.0,0.0004]
[1727271373776,0.41563617,63619.0,63612.0,0.0004]
[1727271373777,0.078604,63613.0,63612.0,0.0004]
[1727271373976,0.078604,63613.0,63606.0,0.3608]
[1727271373977,0.03744417,63613.0,63606.0,0.3608]
[1727271374181,0.078608,63611.0,63610.0,0.078607]
[1727271374377,0.11565217,63611.0,63610.0,0.078607]
[1727271374785,0.078608,63611.0,63610.0,0.078607]
[1727271375387,0.078608,63611.0,63599.0,0.39545851]
[1727271375388,0.078613,63607.0,63606.0,0.078612]
[1727271375580,0.0302,63612.0,63608.0,0.07861]
[1727271375581,0.3608,63609.0,63608.0,0.07861]
[1727271375884,0.3608,63609.0,63599.0,0.39625851]
[1727271375885,0.07861,63608.0,63607.0,0.17720168]
[1727271376079,0.07901,63608.0,63602.0,0.0315]
[1727271376276,0.07901,63608.0,63607.0,0.1745511]
[1727271376585,0.07901,63608.0,63606.0,0.006]
[1727271376781,0.0008,63607.0,63606.0,0.084612]
[1727271377203,0.0008,63607.0,63606.0,0.2591631]
[1727271377382,0.0008,63607.0,63606.0,0.2531631]
[1727271379180,0.0008,63607.0,63606.0,0.2581631]
[1727271379674,0.0008,63607.0,63606.0,0.7761871]
[1727271379985,0.0008,63607.0,63606.0,0.2581631]
[1727271379986,0.2208,63607.0,63606.0,0.2581631]
[1727271380177,0.2208,63607.0,63606.0,0.005]
[1727271380178,0.411022,63607.0,63606.0,0.005]
[1727271380374,0.07862,63600.0,63599.0,0.00235851]
[1727271380582,0.65942,63600.0,63599.0,0.00235851]
[1727271380781,0.65942,63600.0,63593.0,0.078628]
[1727271380782,0.078627,63594.0,63593.0,0.078628]
[1727271380990,0.078627,63594.0,63584.0,0.3608]
[1727271380991,0.5816,63594.0,63584.0,0.0008]
[1727271381192,0.5816,63594.0,63580.0,0.04706714]
[1727271381193,0.078638,63585.0,63580.0,0.04706714]
[1727271381501,0.078638,63585.0,63578.0,0.3608]
[1727271381502,0.078633,63589.0,63584.0,0.17703392]
[1727271381989,0.0782411,63587.0,63579.0,0.17703392]
[1727271382189,0.0008,63580.0,63579.0,0.078646]
[1727271382381,0.0008,63580.0,63579.0,0.25442501]
[1727271383986,0.0028,63580.0,63579.0,0.26642501]
[1727271385186,0.0037,63592.0,63579.0,1.33826501]
[1727271385487,0.0037,63596.0,63590.0,0.3608]
[1727271385688,0.078623,63598.0,63596.0,0.078625]
[1727271386185,0.078623,63598.0,63597.0,0.078623]
[1727271386384,0.3608,63600.0,63598.0,0.078622]
[1727271386585,0.07814316,63599.0,63592.0,0.18219412]
[1727271386787,0.43894316,63600.0,63599.0,0.078621]
[1727271386988,0.07814316,63600.0,63599.0,0.078621]
[1727271387377,0.0329,63606.0,63591.0,0.3935]
[1727271387378,0.07814316,63601.0,63600.0,0.07862]
[1727271387580,0.10921104,63613.0,63600.0,0.07862]
[1727271387581,0.07814316,63607.0,63603.0,0.078616]
[1727271387784,0.07814316,63608.0,63601.0,0.18173402]
[1727271387984,0.0008,63602.0,63598.0,0.001]
[1727271388190,0.0008,63599.0,63598.0,0.079622]
[1727271388386,0.0008,63602.0,63601.0,0.078619]
[1727271388686,0.07862,63600.0,63599.0,0.24549057]
[1727271388883,0.07942,63600.0,63599.0,0.078621]
[1727271389485,0.0008,63600.0,63599.0,0.24976025]
[1727271389784,0.0118,63600.0,63599.0,0.25076025]
[1727271390885,0.0028,63600.0,63599.0,0.24976025]
[1727271391286,0.0038,63600.0,63599.0,0.24976025]
[1727271392200,0.0028,63600.0,63599.0,0.25376025]
[1727271392381,0.0008,63600.0,63599.0,0.25776025]
[1727271393086,0.0018,63600.0,63599.0,0.26276025]
[1727271394496,0.0018,63600.0,63599.0,0.40276025]
[1727271395688,0.0018,63600.0,63599.0,0.48138125]
[1727271395890,0.0008,63602.0,63599.0,0.48138125]
[1727271395891,0.0008,63602.0,63601.0,0.235857]
[1727271396095,0.0008,63602.0,63601.0,0.236257]
[1727271396291,0.0008,63602.0,63601.0,0.41436039]
[1727271396892,0.0037,63612.0,63611.0,0.078606]
[1727271397093,0.03689413,63612.0,63611.0,0.219006]
[1727271397286,0.10938094,63613.0,63611.0,0.39878921]
[1727271397487,0.0369739,63612.0,63611.0,0.39878921]
[1727271397762,0.0369739,63612.0,63611.0,0.39838921]
[1727271398201,0.0419739,63612.0,63611.0,0.39838921]
[1727271398391,0.0419739,63612.0,63611.0,0.25838921]
[1727271398585,0.11438094,63612.0,63611.0,0.25838921]
[1727271399081,0.15135484,63612.0,63611.0,0.25838921]
[1727271399281,0.0419739,63612.0,63611.0,0.078606]
[1727271399585,0.005,63612.0,63611.0,0.078606]
[1727271399787,0.08483864,63612.0,63611.0,0.078606]
[1727271400494,0.0419739,63612.0,63611.0,0.078606]